bitfinex/quotes_SOLUSD_20240620
["timestamp","ask_amount","ask_price","bid_price","bid_amount"]
[1718848988777,0.68,134.45,134.39,7.4408]
[1718848988977,0.17,134.43,134.32,22.2769]
[1718848989176,0.68,134.43,134.37,7.4419]
[1718848989384,100.68,134.43,134.28,32.5072]
[1718848989711,7.6099,134.41,134.35,7.4432]
[1718848989877,0.17,134.39,134.34,7.4433]
[1718848990074,0.17,134.39,134.37,7.4419]
[1718848990379,0.17,134.39,134.38,7.4415]
[1718848990988,0.17,134.39,134.37,7.442]
[1718848991194,0.17,134.39,134.28,6.5472]
[1718848991396,0.17,134.39,134.29,45.0]
[1718848991592,0.17,134.39,134.35,7.4429]
[1718848991773,0.17,134.39,134.34,7.4434]
[1718848992175,0.51,134.4,134.37,7.4418]
[1718848992394,0.17,134.39,134.37,7.442]
[1718848992594,0.17,134.39,134.36,7.4425]
[1718848992793,0.17,134.39,134.37,7.442]
[1718848992980,0.17,134.39,134.28,6.5472]
[1718848993173,0.17,134.39,134.29,45.0]
[1718848993575,0.17,134.39,134.35,7.4431]
[1718848994011,0.17,134.39,134.36,7.4426]
[1718848995092,0.17,134.39,134.35,7.443]
[1718848995799,0.17,134.39,134.36,7.4425]
[1718848995992,105.9158495,134.47,134.39,7.4406]
[1718848996192,20.0,134.46,134.29,45.0]
[1718848996381,7.4381,134.45,134.38,7.4413]
[1718848997095,7.4395,134.42,134.36,7.4425]
[1718848997285,7.4384,134.44,134.29,45.0]
[1718848997597,0.51,134.43,134.38,7.4412]
[1718848997902,0.34,134.42,134.38,7.4412]
[1718848998099,0.34,134.42,134.28,6.5472]
[1718848998100,0.17,134.4,134.28,6.5472]
[1718848998282,0.34,134.4,134.28,6.5472]
[1718848998483,0.34,134.4,134.36,7.4426]
[1718848998682,0.34,134.39,134.36,7.4426]
[1718848998895,0.34,134.39,134.37,7.4421]
[1718848999091,0.34,134.39,134.36,7.4424]
[1718848999601,0.17,134.38,134.36,7.4424]
[1718848999798,120.0,134.46,134.28,28.8072]
[1718848999976,7.4387,134.44,134.29,90.96]
[1718849000176,7.4378,134.45,134.38,7.4415]
[1718849000898,120.0,134.46,134.29,57.1420182]
[1718849000899,4.6587,134.4,134.29,57.1420182]
[1718849001194,4.6587,134.4,134.36,7.4423]
[1718849001396,4.6587,134.4,134.3,11.1820182]
[1718849001602,0.17,134.38,134.35,7.4428]
[1718849001817,0.34,134.38,134.35,7.4428]
[1718849002006,0.34,134.37,134.35,7.4428]
[1718849002699,0.34,134.37,134.36,7.4426]
[1718849002905,0.51,134.37,134.36,7.4426]
[1718849003788,0.51,134.37,134.28,6.5472]
[1718849004002,0.34,134.37,134.28,6.5472]
[1718849004186,0.34,134.37,134.35,7.4428]
[1718849004783,0.34,134.37,134.33,7.444]
[1718849004784,0.17,134.36,134.33,7.444]
[1718849005100,0.34,134.37,134.28,6.5472]
[1718849005399,0.34,134.37,134.29,45.0]
[1718849005601,0.34,134.36,134.28,6.5472]
[1718849005795,0.34,134.35,134.28,6.5472]
[1718849006001,0.17,134.36,134.35,7.4432]
[1718849006385,0.17,134.37,134.34,7.4434]
[1718849006691,0.51,134.37,134.34,7.4434]
[1718849007095,0.17,134.36,134.34,7.4435]
[1718849007293,0.34,134.36,134.33,7.4441]
[1718849007481,0.34,134.36,134.34,7.4437]
[1718849009010,4.6587,134.4,134.28,6.5472]
[1718849009208,4.6587,134.45,134.29,65.0]
[1718849009399,7.4399,134.41,134.29,65.0]
[1718849009706,7.4406,134.4,134.33,7.4439]
[1718849010005,18.5976,134.43,134.29,45.0]
[1718849010006,7.44,134.41,134.29,45.0]
[1718849010212,7.44,134.41,134.35,7.4431]
[1718849010387,0.68,134.4,134.34,7.4436]
[1718849010716,0.68,134.4,134.29,45.0]
[1718849010911,0.68,134.4,134.38,7.4411]
[1718849011281,0.68,134.4,134.36,7.4426]
[1718849011597,0.68,134.4,134.35,7.4431]
[1718849011791,0.68,134.4,134.36,7.4425]
[1718849011988,0.68,134.4,134.35,7.4432]
[1718849012604,0.68,134.4,134.36,7.4426]
[1718849014005,0.68,134.4,134.37,7.442]
[1718849014395,0.68,134.4,134.36,7.4424]
[1718849014704,0.68,134.4,134.29,45.0]
[1718849014883,0.68,134.4,134.37,7.4419]
[1718849015080,0.68,134.4,134.36,7.4424]
[1718849015286,4.6587,134.45,134.38,7.441]
[1718849015489,4.6587,134.45,134.29,67.26]
[1718849015691,4.6587,134.45,134.3,20.0]
[1718849016006,7.4386,134.44,134.38,7.4414]
[1718849016203,4.6587,134.45,134.39,7.441]
[1718849016420,4.6587,134.45,134.3,20.0]
[1718849016703,0.17,134.44,134.31,45.0]
[1718849017008,0.51,134.44,134.38,7.4414]
[1718849017591,0.17,134.43,134.38,7.4414]
[1718849017891,0.17,134.42,134.37,7.4419]
[1718849018092,0.51,134.42,134.37,7.4419]
[1718849018291,0.17,134.41,134.37,7.4419]
[1718849018486,0.51,134.41,134.38,7.4415]
[1718849018704,0.17,134.41,134.39,7.4405]
[1718849019308,0.17,134.41,134.31,70.96]
[1718849019611,0.17,134.41,134.38,7.4412]
[1718849020201,0.34,134.41,134.39,7.4406]
[1718849020398,265.4018927,134.48,134.35,22.3661]
[1718849020612,265.4018927,134.48,134.42,7.4391]
[1718849020799,265.4018927,134.48,134.43,7.4386]
[1718849020998,260.5587,134.48,134.35,22.3661]
[1718849021202,260.5587,134.52,134.36,87.26]
[1718849021610,260.5587,134.52,134.38,25.96]
[1718849021806,260.5587,134.52,134.47,7.4363]
[1718849022006,260.5587,134.52,134.46,7.4369]
[1718849022204,267.9926,134.52,134.46,7.4369]
[1718849022403,4.6587,134.52,134.39,65.0]
[1718849022597,4.6587,134.52,134.49,7.4354]
[1718849022806,7.4326,134.55,134.49,7.4354]
[1718849022807,12.0913,134.55,134.49,7.4354]
[1718849023035,7.4329,134.54,134.48,7.4359]
[1718849023318,4.6587,134.55,134.47,7.4364]
[1718849023503,123.2393,134.55,134.46,7.4369]
[1718849023818,7.4341,134.52,134.39,65.0]
[1718849023998,7.4345,134.51,134.44,7.4377]
[1718849024319,7.4351,134.5,134.39,45.0]
[1718849024503,0.51,134.49,134.43,7.4385]
[1718849024696,0.68,134.49,134.44,7.4382]
[1718849024900,0.68,134.49,134.41,7.4397]
[1718849025102,4.6587,134.48,134.41,7.4397]
[1718849025297,0.68,134.47,134.37,21.8711]
[1718849025525,0.68,134.47,134.42,7.4393]
[1718849025708,0.68,134.47,134.41,7.4397]
[1718849025895,0.68,134.47,134.42,7.4393]
[1718849026297,0.68,134.47,134.42,7.4392]
[1718849026509,8.1168,134.47,134.41,7.4395]
[1718849026709,0.68,134.47,134.41,7.4395]
[1718849027112,0.68,134.47,134.37,21.8711]
[1718849027309,0.68,134.47,134.44,7.4382]
[1718849027501,7.4347,134.51,134.37,21.8711]
[1718849027706,7.435,134.5,134.37,21.8711]
[1718849027919,7.435,134.5,134.44,7.4379]
[1718849028613,100.0,134.5,134.4,7.4402]
[1718849028917,0.17,134.47,134.42,7.4393]
[1718849029117,0.17,134.47,134.37,21.8711]
[1718849029118,8.1169,134.47,134.37,21.8711]
[1718849029418,8.1169,134.47,134.33,25.96]
[1718849029419,0.17,134.42,134.33,22.0528]
[1718849029619,0.34,134.41,134.36,7.4424]
[1718849029922,0.17,134.4,134.37,7.4419]
[1718849030600,0.34,134.4,134.35,7.4431]
[1718849030900,0.34,134.39,134.29,22.2777]
[1718849031105,0.17,134.37,134.29,22.2777]
[1718849031318,0.17,134.37,134.34,7.4434]
[1718849032097,0.17,134.37,134.33,7.4441]
[1718849033022,0.17,134.37,134.34,7.4436]
[1718849033804,0.17,134.37,134.29,22.2777]
[1718849034127,12.2713,134.37,134.26,1.99040746]
[1718849034325,0.17,134.35,134.31,7.4449]
[1718849035123,0.17,134.35,134.26,1.99040746]
[1718849035124,0.17,134.35,134.32,7.4445]
[1718849035718,0.17,134.35,134.33,7.4442]
[1718849036108,0.17,134.35,134.32,7.4447]
[1718849036315,0.51,134.36,134.26,1.99040746]
[1718849036626,0.17,134.35,134.26,1.99040746]
[1718849037126,0.17,134.35,134.31,7.445]
[1718849037427,0.17,134.35,134.32,7.4448]
[1718849037829,0.17,134.35,134.33,7.4442]
[1718849039221,7.4412,134.39,134.26,1.99040746]
[1718849039420,7.4412,134.39,134.33,7.4441]
[1718849040025,7.4416,134.38,134.32,7.4446]
[1718849040232,4.6587,134.4,134.26,1.99040746]
[1718849040531,0.17,134.38,134.26,21.99040746]
[1718849040710,4.6587,134.4,134.27,45.0]
[1718849040906,4.6587,134.4,134.35,7.4432]
[1718849041123,4.6587,134.4,134.34,7.4436]
[1718849041329,12.0993,134.4,134.33,7.4441]
[1718849041725,12.0993,134.4,134.27,45.0]
[1718849041726,4.6587,134.4,134.27,45.0]
[1718849041925,7.4415,134.38,134.32,7.4447]
[1718849042233,7.4411,134.39,134.33,7.4442]
[1718849042532,0.17,134.38,134.27,45.0]
[1718849042731,0.34,134.39,134.27,45.0]
[1718849042932,0.17,134.38,134.35,7.443]
[1718849043120,0.17,134.38,134.34,7.4435]
[1718849043427,255.9,134.42,134.31,22.4593]
[1718849043628,255.9,134.42,134.32,45.0]
[1718849043927,263.3397,134.42,134.35,7.4428]
[1718849044111,263.3397,134.42,134.36,7.4425]
[1718849044512,263.3397,134.42,134.31,22.4593]
[1718849044714,7.6101,134.41,134.34,7.4432]
[1718849044919,0.17,134.4,134.37,7.4421]
[1718849045119,10.70768468,134.44,134.32,45.0]
[1718849045120,29.823998,134.5,134.34,15.102]
[1718849045324,100.0,134.48,134.35,45.0]
[1718849045526,7.438,134.45,134.35,45.0]
[1718849045715,7.4372,134.46,134.39,7.4405]
[1718849046335,7.4379,134.45,134.38,7.4414]
[1718849046533,4.6587,134.45,134.37,7.442]
[1718849046734,7.4401,134.41,134.35,7.4431]
[1718849046916,7.4394,134.42,134.35,7.4431]
[1718849047116,7.4394,134.42,134.36,7.4425]
[1718849047325,0.68,134.41,134.36,7.4425]
[1718849047542,8.1201,134.41,134.34,7.4437]
[1718849048021,8.1201,134.41,134.35,7.4432]
[1718849048222,0.68,134.41,134.36,7.4425]
[1718849048720,0.68,134.41,134.37,7.442]
[1718849048921,0.68,134.41,134.38,7.4413]
[1718849049122,0.68,134.41,134.37,7.442]
[1718849049336,0.68,134.41,134.36,7.4425]
[1718849049731,7.4413,134.39,134.3,21.4556]
[1718849049938,0.68,134.38,134.33,7.4442]
[1718849050246,0.68,134.38,134.3,21.4556]
[1718849050738,0.17,134.38,134.3,21.4556]
[1718849050946,4.6587,134.45,134.4,7.4404]
[1718849051126,4.6587,134.45,134.3,21.4556]
[1718849051127,4.6587,134.45,134.42,7.4393]
[1718849051326,7.4367,134.47,134.41,7.4398]
[1718849052038,7.4371,134.46,134.4,7.4402]
[1718849052645,0.34,134.45,134.4,7.4402]
[1718849052845,0.34,134.45,134.3,43.7156]
[1718849052846,7.778,134.45,134.38,7.4413]
[1718849053147,7.4398,134.42,134.35,7.443]
[1718849053336,0.34,134.41,134.36,7.4423]
[1718849053519,0.34,134.41,134.35,7.443]
[1718849053827,0.34,134.41,134.3,21.4556]
[1718849053828,4.9987,134.4,134.3,21.4556]
[1718849054031,0.34,134.39,134.36,7.4423]
[1718849054238,0.34,134.39,134.36,7.4422]
[1718849055249,0.17,134.4,134.3,21.4556]
[1718849055452,0.17,134.39,134.34,7.4436]
[1718849055664,0.17,134.39,134.35,7.443]
[1718849055943,0.51,134.4,134.3,21.4556]
[1718849056146,0.51,134.4,134.37,7.4417]
[1718849056344,0.51,134.4,134.36,7.4425]
[1718849056725,0.17,134.39,134.3,21.4556]
[1718849056916,0.17,134.39,134.35,7.4431]
[1718849057119,0.17,134.39,134.3,21.4556]
[1718849057335,0.17,134.39,134.26,24.04160746]
[1718849057531,0.17,134.39,134.27,20.0]
[1718849057746,0.17,134.39,134.27,19.5]
[1718849058742,0.17,134.39,134.34,7.4437]
[1718849058937,0.17,134.39,134.27,19.5]
[1718849059444,7.6112,134.39,134.33,7.444]
[1718849059655,0.51,134.38,134.35,7.4431]
[1718849059841,7.4396,134.42,134.36,7.4426]
[1718849060223,12.0976,134.43,134.37,7.4421]
[1718849060576,7.4393,134.42,134.36,7.4425]
[1718849061451,0.34,134.41,134.36,7.4425]
[1718849061751,0.34,134.4,134.36,7.4425]
[1718849061934,0.17,134.39,134.36,7.4425]
[1718849062321,4.6587,134.43,134.34,22.1388]
[1718849062525,4.6587,134.47,134.4,7.4404]
[1718849062757,7.4375,134.46,134.4,7.4404]
[1718849063139,7.4377,134.45,134.39,7.4409]
[1718849063548,7.4383,134.44,134.38,7.4415]
[1718849063860,0.17,134.4,134.35,7.4428]
[1718849064152,0.51,134.4,134.34,7.4433]
[1718849064361,0.17,134.39,134.35,7.4432]
[1718849064654,0.51,134.39,134.35,7.4432]
[1718849064852,0.34,134.4,134.37,7.4416]
[1718849065037,255.9,134.46,134.3,21.8842]
[1718849065354,0.51,134.45,134.4,7.4401]
[1718849065641,255.9,134.46,134.41,7.4397]
[1718849065844,12.0953,134.47,134.31,25.96]
[1718849065845,4.6587,134.47,134.31,25.96]
[1718849066031,4.6587,134.47,134.32,20.0]
[1718849066229,12.0956,134.47,134.41,7.4396]
[1718849066447,7.4371,134.46,134.4,7.4401]
[1718849066624,123.2502,134.47,134.32,20.0]
[1718849066827,7.4389,134.43,134.37,7.4417]
[1718849067528,0.51,134.42,134.32,20.0]
[1718849067839,0.51,134.42,134.39,7.4406]
[1718849068647,0.51,134.42,134.32,20.0]
[1718849069149,0.51,134.42,134.38,7.4411]
[1718849069351,0.51,134.42,134.39,7.4407]
[1718849069643,0.51,134.42,134.39,7.4408]
[1718849070145,0.51,134.42,134.32,20.0]
[1718849070347,0.51,134.42,134.36,7.4424]
[1718849070348,0.17,134.41,134.36,7.4424]
[1718849070529,0.17,134.41,134.31,20.0]
[1718849070938,0.17,134.41,134.36,7.4423]
[1718849072545,7.6101,134.41,134.35,7.4432]
[1718849072848,7.6101,134.41,134.3,21.8842]
[1718849072849,0.17,134.39,134.34,7.4435]
[1718849073431,0.17,134.39,134.3,21.8842]
[1718849073629,0.17,134.39,134.35,7.4432]
[1718849074655,4.6587,134.38,134.33,7.444]
[1718849074957,0.68,134.37,134.33,7.444]
[1718849075154,0.68,134.37,134.3,15.3736]
[1718849075354,0.51,134.37,134.3,15.3736]
[1718849075963,0.51,134.37,134.34,7.4435]
[1718849076165,0.51,134.37,134.35,7.4431]
[1718849076455,0.51,134.37,134.33,7.4443]
[1718849077062,0.51,134.37,134.34,7.4437]
[1718849077738,0.17,134.36,134.33,7.4441]
[1718849078857,0.51,134.37,134.34,7.4437]
[1718849079256,0.17,134.36,134.33,7.4441]
[1718849079455,0.17,134.36,134.28,22.38]
[1718849079761,0.17,134.36,134.32,7.4445]
[1718849080353,0.17,134.36,134.26,1.99040746]
[1718849080540,7.4438,134.34,134.28,7.4466]
[1718849080740,0.34,134.33,134.29,7.4464]
[1718849081056,0.17,134.32,134.3,7.4459]
[1718849081956,0.17,134.32,134.26,1.99040746]
[1718849081957,0.17,134.31,134.26,1.99040746]
[1718849082147,0.51,134.31,134.26,1.99040746]
[1718849082347,0.17,134.3,134.26,1.99040746]
[1718849082549,7.6167,134.29,134.26,1.99040746]
[1718849082743,0.34,134.28,134.26,1.99040746]
[1718849082940,0.34,134.27,134.26,1.99040746]
[1718849083251,12.2763,134.27,134.26,1.99040746]
[1718849083447,0.17,134.26,134.22,16.46658592]
[1718849083649,8.1283,134.26,134.22,16.46658592]
[1718849083859,0.68,134.26,134.22,16.46658592]
[1718849084042,7.4492,134.25,134.22,16.46658592]
[1718849084242,38.1293,134.24,134.22,16.46658592]
[1718849084459,0.17,134.23,134.22,16.46658592]
[1718849084666,0.68,134.23,134.22,16.46658592]
[1718849085550,30.68,134.23,134.22,16.46658592]
[1718849086465,8.1298,134.23,134.22,16.46658592]
[1718849086843,30.68,134.23,134.22,16.46658592]
[1718849087279,138.1298,134.23,134.22,16.46658592]
[1718849087453,38.1298,134.23,134.22,16.46658592]
[1718849088267,142.7885,134.23,134.22,2.26526984]
[1718849088449,162.7885,134.23,134.22,2.08526984]
[1718849088772,463.6885,134.23,134.22,2.08526984]
[1718849088974,418.6885,134.23,134.22,2.08526984]
[1718849089961,418.6885,134.23,134.14,7.4548]
[1718849089962,7.4513,134.21,134.14,7.4548]
[1718849090163,7.4525,134.19,134.12,7.4558]
[1718849090362,7.6234,134.17,134.1,7.4567]
[1718849090544,0.17,134.15,134.07,22.0955]
[1718849090750,0.17,134.15,134.11,7.4565]
[1718849090952,0.34,134.15,134.11,7.4565]
[1718849091267,0.34,134.14,134.11,7.4565]
[1718849091479,0.34,134.13,134.1,7.457]
[1718849091680,0.34,134.13,134.04,22.1394]
[1718849091681,0.34,134.12,134.04,22.1394]
[1718849091863,0.17,134.11,134.04,22.1394]
[1718849092066,0.17,134.11,134.07,7.4586]
[1718849092270,0.17,134.11,134.01,16.80500142]
[1718849092271,0.34,134.11,134.01,16.80500142]
[1718849092481,0.34,134.12,134.01,16.80500142]
[1718849092656,0.17,134.11,134.01,16.80500142]
[1718849092968,30.0,134.13,134.1,7.4567]
[1718849093182,0.17,134.15,134.11,7.4565]
[1718849093352,0.34,134.15,134.11,6.4565]
[1718849093555,4.6587,134.2,134.06,15.6982]
[1718849093862,7.4523,134.19,134.13,7.4551]
[1718849094064,30.0,134.15,134.11,7.4561]
[1718849094262,30.0,134.15,134.12,7.4555]
[1718849094652,4.6587,134.2,134.14,7.4545]
[1718849094856,7.4521,134.19,134.13,7.4554]
[1718849095062,7.4527,134.18,134.12,7.4556]
[1718849095254,100.0,134.18,134.11,7.4564]
[1718849095455,18.6317,134.18,134.06,22.1394]
[1718849095670,7.4533,134.17,134.06,22.1394]
[1718849095869,0.17,134.16,134.06,22.1394]
[1718849096074,0.17,134.15,134.11,7.4565]
[1718849096371,30.17,134.15,134.06,22.1394]
[1718849096572,0.34,134.14,134.06,22.1394]
[1718849096776,0.17,134.14,134.13,7.4554]
[1718849097073,12.1103,134.2,134.13,7.4552]
[1718849097258,7.4522,134.19,134.13,7.4552]
[1718849097461,4.6587,134.2,134.11,7.4562]
[1718849097462,7.4531,134.18,134.11,7.4562]
[1718849097676,7.4533,134.17,134.11,7.4562]
[1718849098052,0.51,134.16,134.06,22.1394]
[1718849098260,0.17,134.15,134.1,7.4569]
[1718849098567,0.17,134.15,134.09,7.4574]
[1718849098760,7.6244,134.15,134.09,7.4574]
[1718849098962,0.51,134.14,134.08,7.458]
[1718849099159,0.17,134.12,134.09,7.4576]
[1718849099571,0.34,134.12,134.09,7.4576]
[1718849099764,0.17,134.12,134.1,7.457]
[1718849099960,30.34,134.13,134.06,22.1394]
[1718849100176,30.0,134.13,134.06,22.1394]
[1718849100479,30.0,134.13,134.12,7.456]
[1718849101078,7.4523,134.19,134.12,7.456]
[1718849101259,4.6587,134.2,134.12,7.456]
[1718849101577,24.6587,134.2,134.06,22.1394]
[1718849101780,255.9,134.23,134.07,67.26]
[1718849102079,255.9,134.23,134.17,7.4528]
[1718849102283,7.4502,134.23,134.17,7.4528]
[1718849102463,4.6587,134.24,134.19,7.452]
[1718849102663,7.4491,134.25,134.19,7.452]
[1718849102964,123.279,134.27,134.17,7.4527]
[1718849102965,104.6587,134.27,134.17,7.4527]
[1718849103165,7.4501,134.23,134.17,7.4529]
[1718849103494,7.4493,134.24,134.18,7.4526]
[1718849103659,129.09465519,134.27,134.14,15.0398]
[1718849103660,100.0,134.23,134.14,15.0398]
[1718849103863,100.0,134.19,134.1,15.8605]
[1718849104184,100.0,134.19,134.09,0.4629]
[1718849104185,18.635,134.16,134.09,0.4629]
[1718849104479,7.4545,134.15,134.09,0.4629]
[1718849104681,0.17,134.13,134.09,0.4629]
[1718849104886,8.1355,134.13,134.09,0.4629]
[1718849105060,0.68,134.13,134.09,0.4629]
[1718849105862,0.17,134.11,134.09,0.4629]
[1718849106185,0.68,134.11,134.09,0.4629]
[1718849106361,8.1368,134.11,134.09,0.4629]
[1718849106780,7.4571,134.1,134.09,0.4629]
[1718849106983,7.9671,134.1,134.09,0.4629]
[1718849107183,8.1371,134.1,134.09,0.4629]
[1718849107372,0.68,134.1,134.09,0.4629]
[1718849108276,30.0,134.12,134.09,0.4629]
[1718849108468,30.0,134.12,134.01,23.32080142]
[1718849108469,7.4571,134.1,134.01,23.32080142]
[1718849108666,30.0,134.09,134.01,23.32080142]
[1718849109064,30.0,134.09,134.04,7.4603]
[1718849109471,30.0,134.09,134.01,23.32080142]
[1718849109670,18.6349,134.16,134.01,23.32080142]
[1718849109671,126.17,134.18,134.01,23.32080142]
[1718849109876,20.0,134.17,134.01,23.32080142]
[1718849110098,7.4528,134.18,134.12,7.4558]
[1718849110295,7.4532,134.17,134.11,7.4564]
[1718849110496,7.4529,134.18,134.12,7.4557]
[1718849110668,7.4522,134.19,134.13,7.4553]
[1718849110987,7.4522,134.19,134.12,7.4557]
[1718849111194,7.4526,134.18,134.11,7.4563]
[1718849111976,7.4543,134.15,134.1,16.1751]
[1718849112287,7.4555,134.13,134.07,7.4583]
[1718849112498,0.17,134.11,134.07,7.4583]
[1718849112685,7.627,134.11,134.05,23.1768]
[1718849112866,0.17,134.09,134.03,6.1058]
[1718849113067,0.34,134.09,134.06,7.4592]
[1718849113379,0.17,134.1,134.03,6.1058]
[1718849113575,0.34,134.11,134.03,6.1058]
[1718849113886,0.17,134.09,134.04,7.4601]
[1718849114078,0.34,134.09,134.04,7.4601]
[1718849114385,0.34,134.09,134.05,7.4596]
[1718849114588,0.17,134.09,134.07,7.4587]
[1718849114767,30.34,134.1,134.03,6.1058]
[1718849115371,30.34,134.1,134.06,7.4592]
[1718849115372,0.34,134.1,134.06,7.4592]
[1718849115674,0.34,134.1,134.07,7.4587]
[1718849115881,44.8016,134.19,134.03,6.1058]
[1718849116088,123.2877,134.2,134.04,45.0]
[1718849116279,7.4544,134.15,134.09,7.4575]
[1718849116668,7.4539,134.16,134.1,7.457]
[1718849116866,38.6315,134.19,134.04,45.0]
[1718849117083,20.0,134.19,134.04,45.0]
[1718849117287,7.4526,134.19,134.04,45.0]
[1718849117479,32.1107,134.2,134.13,7.4552]
[1718849117679,30.0,134.14,134.13,7.4552]
[1718849117885,27.452,134.2,134.14,7.4548]
[1718849118474,7.4527,134.18,134.12,7.4558]
[1718849118693,7.4522,134.19,134.13,7.4553]
[1718849119273,20.0,134.2,134.15,7.4543]
[1718849119473,7.4512,134.21,134.15,7.4543]
[1718849119971,104.6587,134.24,134.16,7.4535]
[1718849120168,7.4495,134.24,134.18,7.4526]
[1718849120368,119.6985,134.28,134.13,16.1279]
[1718849120369,19.6985,134.28,134.2,7.4512]
[1718849120683,7.4473,134.28,134.21,7.4505]
[1718849120978,7.4488,134.25,134.19,13.8914]
[1718849121177,18.6169,134.29,134.19,6.4395]
[1718849121383,7.4481,134.27,134.2,7.4513]
[1718849121577,7.4471,134.28,134.22,7.4504]
[1718849121984,7.4492,134.25,134.19,6.4395]
[1718849122187,7.4495,134.24,134.19,6.4395]
[1718849122388,7.4497,134.24,134.19,6.4395]
[1718849122584,7.4487,134.26,134.19,6.4395]
[1718849123097,7.4487,134.26,134.19,13.8913]
[1718849123394,18.6181,134.28,134.19,13.8913]
[1718849123395,7.4489,134.25,134.19,13.8913]
[1718849123593,7.4483,134.26,134.2,7.4515]
[1718849124174,0.17,134.25,134.2,7.4515]
[1718849124397,0.17,134.25,134.18,7.4521]
[1718849124398,7.4498,134.24,134.18,7.4521]
[1718849124607,0.17,134.22,134.15,7.4537]
[1718849124892,7.6208,134.22,134.16,7.4537]
[1718849125193,7.6208,134.22,134.15,7.4541]
[1718849125194,0.51,134.21,134.15,7.4541]
[1718849125375,0.51,134.21,134.14,6.2399]
[1718849125577,0.51,134.21,134.16,7.4534]
[1718849126394,0.51,134.21,134.17,7.4532]
[1718849126998,7.4495,134.24,134.18,7.4526]
[1718849127175,0.51,134.25,134.14,6.2399]
[1718849127377,0.51,134.25,134.2,7.4513]
[1718849127597,20.0,134.29,134.15,45.0]
[1718849127992,7.4495,134.24,134.18,7.4522]
[1718849128601,20.0,134.29,134.15,45.0]
[1718849128901,18.6148,134.31,134.22,7.45]
[1718849128902,7.4474,134.28,134.22,7.45]
[1718849129196,7.4477,134.27,134.21,7.4508]
[1718849129382,7.4483,134.26,134.2,7.4514]
[1718849129589,7.4488,134.25,134.16,15.8547]
[1718849129990,0.34,134.24,134.19,7.4516]
[1718849130192,0.34,134.24,134.16,15.8547]
[1718849130399,7.4475,134.28,134.22,7.4504]
[1718849130612,7.7877,134.27,134.21,7.4507]
[1718849130913,7.446,134.3,134.24,7.4489]
[1718849131204,7.446,134.3,134.24,7.4493]
[1718849131205,7.4462,134.3,134.24,7.4493]
[1718849131377,18.6124,134.32,134.23,6.065]
[1718849131378,7.4456,134.31,134.26,7.4481]
[1718849131578,7.4456,134.31,134.25,7.4486]
[1718849131812,7.446,134.3,134.24,7.4491]
[1718849132320,360.5587,134.35,134.23,6.065]
[1718849132616,41.886,134.36,134.23,6.065]
[1718849132617,7.4445,134.33,134.27,7.4473]
[1718849132827,14.6587,134.39,134.23,6.065]